Cogmind - Beta 15 @@@ ROGUE MODE // 2025.09.24 @ 11:03:55 Player: Crusang Result: Destroyed by G-34 Mercenary with Small Laser Performance ------------- Evolutions (1) 500 Regions Visited (2) 400 Robots Destroyed (10) 50 Value Destroyed (374) 374 Prototype IDs (0) 0 Alien Tech Used (0) 0 Bonus (0) 0 TOTAL SCORE: 1324 Bonus ------- None Cogmind --------- Core Integrity 0/400 Matter 217/300 Energy 100/100 System Corruption 0% Temperature Cool (6) Movement Core (100) Ox1 Location -9/Materials Parts ------- > --- POWER (1) -------- (None) > --- PROPULSION (2) --- (None) > --- UTILITY (4) ------ Small Storage Unit Signal Interpreter > --- WEAPON (2) ------- (None) > --- INVENTORY (8) ---- Ion Engine Peak State ------------ > --- POWER ------------ Ion Engine > --- PROPULSION ------- Aluminum Leg Aluminum Leg > --- UTILITY ---------- Small Storage Unit Signal Interpreter > --- WEAPON ----------- EM Pulse Gun Small Laser > --- INVENTORY -------- Light Ion Engine Grenade Launcher [Rating: 7] Favorites ----------- Power Light Ion Engine Engine Light Ion Engine Propulsion Aluminum Leg Leg Aluminum Leg Wheel Wheel Utility Small Storage Unit Storage Small Storage Unit Processor Signal Interpreter Weapon Small Laser Energy Gun Small Laser Launcher EMP Blaster Build | -11 -10 -9 ------- Run | Yrd Mat Mat Slots Evolved 2 | . . 2 Power . | . . . Propulsion . | . . . Utility 2 | . . 2 Weapon . | . . . Parts Attached 14 | 6 5 3 Power 3 | 1 2 . Engine 3 | 1 2 . Core . | . . . Reactor . | . . . Propulsion 4 | 2 2 . Treads . | . . . Leg 2 | . 2 . Wheel 2 | 2 . . Hover . | . . . Flight . | . . . Utility 2 | 1 1 . Device . | . . . Storage 1 | 1 . . Processor 1 | . 1 . Hackware . | . . . Protection . | . . . Artifact . | . . . Weapon 5 | 2 . 3 Energy Gun 2 | 2 . . Energy Cannon . | . . . Ballistic Gun . | . . . Ballistic Cannon . | . . . Launcher 3 | . . 3 Special Weapon . | . . . Impact Weapon . | . . . Slashing Weapon . | . . . Piercing Weapon . | . . . Special Melee Weapon . | . . . Unidentified Prototypes . | . . . Corrupted Parts 1 | . 1 . System Corruption 5 | . 5 . Parts Lost 9 | . . 9 Power 2 | . . 2 Propulsion 2 | . . 2 Utility . | . . . Weapon 5 | . . 5 Highest Loss Streak 3 | . . 3 To Critical Strikes . | . . . Average Backups 1 | . 1 1 Power 1 | . 1 1 Propulsion . | . . . Utility . | . . . Weapon . | . . . Tool/Special . | . . . Unused Backups . | . . . Power . | . . . Propulsion . | . . . Utility . | . . . Weapon . | . . . Tool/Special . | . . . Average Slot Usage (%) 66 | . 93 37 Engine 8 | . 14 2 Leg 12 | . 19 4 Wheel 4 | . 8 . Storage 12 | . 14 11 Processor 9 | . 7 11 Energy Gun 16 | . 28 3 Launcher 2 | . . 4 Peak Build Rating 7 | 6 7 7 Average Rating 5 | 4 6 3 On Entrance 4 | . 6 7 Naked Turns . | . . . Heaviest Build 13 | 11 13 13 Greatest Support 20 | 20 20 20 Greatest Overweight (x) 3 | . 1 3 Average Overweight (x) . | . . . Largest Inventory Capacity 8 | 8 8 8 Average Capacity 7 | 6 8 8 Most Carried 3 | . 3 3 Average Carried 1 | . 1 1 Final Capacity 8 | 8 8 8 Final Carried 3 | . 3 1 Class Distribution -------------------- 100% | Mutant Dominant Class ---------------- Mutant | -10/Materials Mutant | -9/Materials Resources | -11 -10 -9 ----------- Run | Yrd Mat Mat Matter Collected 298 | 171 127 . Remotely . | . . . Salvage Created 344 | . 268 76 Parts 20 | . 15 5 Haulers Intercepted . | . . . Recyclers Shooed . | . . . Parts Field Recycled . | . . . Retrieved Matter . | . . . Parts Self-Destructed . | . . . Prevented . | . . . Kills | -11 -10 -9 ------- Run | Yrd Mat Mat Combat Hostiles Destroyed 7 | . 4 3 Guns 4 | . 4 . AOE 3 | . . 3 Classes Destroyed 3 | . 2 1 Watcher 3 | . 3 . Grunt 5 | . 4 1 Sentry 2 | . . 2 Best Kill Streak 2 | . 2 1 Combat Bots Only 2 | . 2 1 Max Kills in Single Turn 1 | . 1 1 Gunslinging . | . . . Exploded 1 | . . 1 Melee . | . . . Uniques/NPCs Destroyed . | . . . Combat | -11 -10 -9 -------- Run | Yrd Mat Mat Hostile Shots Fired 97 | . 20 77 Missed 31 | . 4 27 Hits 66 | . 16 50 Projectile 66 | . 16 50 Critical Strikes 1 | . . 1 Damage Taken 1150 | . 210 940 Core 444 | . 34 410 Absorbed by Shields . | . . . Core Remaining (%) 93 | 100 86 . Volleys Fired 27 | . 16 11 Largest 2 | . 2 2 Hottest 80 | . 80 70 Shots Fired 47 | . 31 16 Gun 36 | . 31 5 Cannon . | . . . Launcher 11 | . . 11 Special . | . . . Kinetic . | . . . Thermal 16 | . 14 2 Explosive 5 | . . 5 Electromagnetic 26 | . 17 9 Robot Hit Streak 10 | . 10 6 Robot Miss Streak 1 | . 1 1 Penetration Max . | . . . Secondary Targets 1 | . 1 . Max Gunslinging Chain 1 | . 1 . Shots Hit Robots 35 | . 25 10 Core Hits 25 | . 14 11 Critical Kills . | . . . Critical Parts Destroyed . | . . . Critical Strikes . | . . . Melee Attacks . | . . . Impact . | . . . Slashing . | . . . Piercing . | . . . Sneak Attacks . | . . . Combat Hostiles . | . . . Follow-up Attacks . | . . . Damage Inflicted 807 | . 358 449 Guns 380 | . 358 22 Cannons . | . . . Explosions 419 | . . 419 Melee . | . . . Ramming 8 | . . 8 Kinetic . | . . . Thermal 260 | . 110 150 Explosive 135 | . . 135 Electromagnetic 404 | . 248 156 Impact . | . . . Slashing . | . . . Piercing . | . . . Highest Corruption 5 | . 5 . Average Corruption 5 | . 5 . Corruption Purged . | . . . Corruption Blocked . | . . . Effects 7 | . 7 . Message Errors 4 | . 4 . Matter Fused 1 | . 1 . Misfires 1 | . 1 . Weapon Failures 1 | . 1 . Overload Shots . | . . . Overflow Damage 72 | . . 72 Projectiles . | . . . Explosions 72 | . . 72 Melee . | . . . Knockbacks . | . . . Impact . | . . . Kinetic . | . . . Secondary . | . . . Self-Inflicted Damage 204 | . . 204 Shots 8 | . . 8 Rammed 4 | . . 4 Targets Rammed 4 | . . 4 Kicked . | . . . Crushed . | . . . Highest Temperature 138 | . 138 25 Average Temperature 45 | . 52 11 Received Heat Transfer 417 | . 120 297 Siege Activations . | . . . Martial Activations . | . . . Shielding Activations . | . . . Robots Disrupted . | . . . Combat Hostiles . | . . . Robots Corrupted . | . . . Combat Hostiles . | . . . Parts Fried 1 | . 1 . Impact Corruptions . | . . . Robots Melted . | . . . Combat Hostiles . | . . . Parts Melted 1 | . 1 . Heat Transferred 350 | . 250 100 Parts Sabotaged . | . . . Parts Stolen . | . . . Parts Stripped . | . . . Power Chain Reactions . | . . . Alert | -11 -10 -9 ------- Run | Yrd Mat Mat Maximum Alert Level . | . . . Low Security (%) 100 | 100 100 100 Level 1 . | . . . Level 2 . | . . . Level 3 . | . . . Level 4 . | . . . Level 5 . | . . . High Security . | . . . Max Security . | . . . Peak Influence 128 | . 70 128 Initial 25 | . . 25 Average 41 | . 12 76 Influence Increases 504 | . 151 353 Destroy 0b10 Robot/C 140 | . 80 60 Destroy 0b10 Robot/NC 15 | . 15 . Destroy Leader 46 | . 26 20 Successful Hack 14 | . . 14 Disable Machine 60 | . . 60 Destroy Structure 49 | . . 49 Lose Combat Pursuer 180 | . 30 150 Influence Decreases 376 | . 91 285 Entered New Map 35 | . . 35 Time Decay 251 | . 91 160 Lost Part 90 | . . 90 Squads Dispatched 1 | . . 1 Investigation . | . . . Extermination . | . . . Reinforcement 1 | . . 1 Assault . | . . . Garrison . | . . . Intercept . | . . . Searches Triggered . | . . . Construction Impeded . | . . . Haulers Reinforced . | . . . Active Scanning Responses . | . . . Cargo Convoy Interrupts . | . . . Stealth | -11 -10 -9 --------- Run | Yrd Mat Mat Distress Signals 6 | . 2 4 Communications Jammed . | . . . Distress Signals . | . . . Times Spotted 30 | . 9 21 Peak Tracking Total 7 | . 3 7 Tactical Retreats 8 | . 1 7 Traps | -11 -10 -9 ------- Run | Yrd Mat Mat Traps Triggered 1 | . . 1 Indirectly . | . . . Trap Hack Attempts . | . . . Triggered . | . . . Disarmed . | . . . Reprogrammed . | . . . Reused . | . . . Traps Extracted . | . . . Installed . | . . . Triggered . | . . . Machines | -11 -10 -9 ---------- Run | Yrd Mat Mat Machines Disabled 4 | . . 4 Max in Single Turn 2 | . . 2 Machines Repaired . | . . . Machines Dismantled . | . . . Machines Sabotaged . | . . . Overloaded Fab Kills . | . . . Hacking | -11 -10 -9 --------- Run | Yrd Mat Mat Machines Accessed 2 | . . 2 Terminals 2 | . . 2 Fabricators . | . . . Repair Stations . | . . . Recycling Units . | . . . Scanalyzers . | . . . Garrison Access . | . . . Total Hacks 7 | . . 7 Successful 1 | . . 1 Failed 6 | . . 6 Catastrophic . | . . . Database Lockouts . | . . . Manual . | . . . Terminals 7 | . . 7 Fabricators . | . . . Repair Stations . | . . . Recycling Units . | . . . Scanalyzers . | . . . Garrison Access . | . . . Terminal Hacks 1 | . . 1 Record 1 | . . 1 Fabricator Hacks . | . . . Repair Station Hacks . | . . . Recycling Unit Hacks . | . . . Scanalyzer . | . . . Garrison Access Hacks . | . . . Unauthorized Hacks . | . . . Terminals . | . . . Fabricators . | . . . Repair Stations . | . . . Recycling Units . | . . . Scanalyzers . | . . . Garrison Access . | . . . Data Cores Recovered . | . . . Used . | . . . Hacking Detections 2 | . . 2 Full Trace Events 1 | . . 1 Feedback Events . | . . . Feedback Blocked . | . . . Robot Schematics Acquired . | . . . Robots Built . | . . . Authchips . | . . . Time . | . . . Total Robot Build Rating . | . . . Part Schematics Acquired . | . . . Parts Built . | . . . Authchips . | . . . Time . | . . . Total Part Build Rating . | . . . Parts Repaired . | . . . Time . | . . . Parts Recycled . | . . . Recycled Matter . | . . . Retrieved Matter . | . . . Retrieved Components . | . . . Parts Scanalyzed . | . . . Part Schematics Acquired . | . . . Parts Damaged . | . . . Bothacking | -11 -10 -9 ------------ Run | Yrd Mat Mat Used RIF Installer . | . . . Robots Hacked . | . . . Non-combat . | . . . Combat . | . . . Robot Hacks Applied . | . . . Relay Couplers Released . | . . . Fabnet Peak Effective % . | . . . Robots Rewired . | . . . Allies Hacked . | . . . Hacks Repelled . | . . . Allies | -11 -10 -9 -------- Run | Yrd Mat Mat Total Allies . | . . . Largest Group . | . . . Highest-Rated Group . | . . . Highest-Rated Ally . | . . . Total Orders . | . . . Ally Attacks . | . . . Total Damage . | . . . Kills . | . . . Allies Corrupted . | . . . Allies Melted . | . . . Intel | -11 -10 -9 ------- Run | Yrd Mat Mat Active Infowar (turns) . | . . . Robot Analysis Total . | . . . Derelict Logs Recovered . | . . . Drone Launches . | . . . Drone Recoveries . | . . . Exploration | -11 -10 -9 ------------- Run | Yrd Mat Mat Turns Passed 729 | 33 362 334 Spaces Moved 524 | 31 252 241 Core 182 | 1 . 181 Treads . | . . . Legs 254 | . 194 60 Wheels 88 | 30 58 . Hover . | . . . Flight . | . . . Fastest Speed 50 | 50 80 100 Average Speed 111 | 79 111 114 Slowest Speed 200 | 80 190 200 Overloaded Moves . | . . . Propulsion Burnouts . | . . . Robots Hopped . | . . . Potential Cave-ins 1 | . . 1 Cave-ins Triggered . | . . . Exploration Rate (%) 25 | 3 45 28 Regions Visited 2 Branch Regions . Pre-discovered Areas . | . . . Known Exits Taken 1 | . 1 . Unknown Exits Taken 1 | 1 . . Scrap Searched . | . . . Spaces Dug . | . . . Terrain Destroyed 59 | . . 59 Melee . | . . . Projectile . | . . . AOE 59 | . . 59 Terrain Rammed . | . . . Walls Destroyed . | . . . Machines Disabled . | . . . Actions | -11 -10 -9 --------- Run | Yrd Mat Mat Total 613 | 36 298 279 Wait 43 | . 25 18 Move 522 | 30 251 241 Hop . | . . . Pick Up 1 | . 1 . Fast Attach 10 | 6 1 3 Attach 2 | . . 2 Detach . | . . . Swap 4 | . 4 . Drop . | . . . Fire 27 | . 16 11 Melee . | . . . Ram 4 | . . 4 Kick . | . . . Crush . | . . . Escape Stasis . | . . . Rewire . | . . . Trap . | . . . Miscellaneous . | . . . Route ------- -11/Scrapyard -10/Materials (discovered 2 exits: *Mat / *Min) -9/Materials (discovered 1 exit: [*Min]) History --------- Turn | Location | Event 14 | -11/Scrapyard | Discovered new exit (range 16) 34 | -11/Scrapyard | Entered Materials 236 | -10/Materials | Discovered new exit (range 13) 269 | -10/Materials | Identified exit to Mines 304 | -10/Materials | Build established: Mutant 383 | -10/Materials | Discovered new exit (range 6) 393 | -10/Materials | Identified exit to Materials 396 | -10/Materials | Entered another Materials area 396 | -9/Materials | Evolved 2 slots: Utility x2 468 | -9/Materials | Lost 3 parts (1p1n1w) 472 | -9/Materials | Discovered new exit (range 3) 517 | -9/Materials | Lost 3 parts (1n2w) 681 | -9/Materials | Core integrity fell below 50% 689 | -9/Materials | Core integrity fell below 20% 730 | -9/Materials | Destroyed by G-34 Mercenary with Small Laser Last Messages --------------- 00667_ Destabilizing: Core damaged (-16). 00670_ K-01 Serf cleans the Electrolysis Chamber. 00677_ Door malfunctions. 00677_ Electrolysis Chamber disabled. 00681_ K-01 Serf collects debris. 00682_ EMP Blaster destroyed. 00685_ K-01 Serf collects debris. 00694_ K-01 Serf cleans the Integration Channel. 00707_ W-16 Scout sends out distress signal. 00714_ Connecting with Terminal... >>Query(Solar System) Comprises the G-class Sun and its planetary system of eight planets, including [Earth], the origin of [Human] civilization. Many of the system's planets and moons were colonized to some degree during the 2070-2110 push for colonization to alleviate [Human] civilization's growing toll on [Earth]'s resources. 00723_ Slammed into G-34 Mercenary. 00723_ Destabilizing: System interference. 00723_ Signal Interpreter temporarily disabled. 00724_ Slammed into G-34 Mercenary. Map ----- +----------------------------------------------------+ | ??????????????????????????????????????? | | ??????????????????????????????????????? | | ??????????????????????????????????????? | | ??????????????????????????????????????? | | ??????????????????????????????????????? | | ??????????????????????????????????????? | | ??????????????????????????????????????? | | ??????????????????????????????????????? | | ??????????????????????????????????????? | | ??????????????????????????????????????? | | ??????????????????????????????????????? | | ??????????????????????????????????????? | | ??????????????????????????????????????? | | ??????????????????????????????????????? | | ??????????????????????????????????????? | | ??????????????????????????????????????? | | ??????????????????????????????????????? | | ??????????????????????????????????????? | | ??????????????????????#???????????????? | | ??????????????????????# ??????????????? | | ??????????????????????# ??????????????? | | ??????????????????????# ??????????????? | | ??????????????????????#w??########????? | | ??????????????????????# ### #????? | | ??????????????????????# + #????? | | ??????????????????????# @# #????? | | ??????????????????????# + #????? | | ??????????????????????# g# #????? | | ??????????????????????# # #????? | | ??????????????????????# ##/#########? | | ??????????????????????# # # | | ??????????????????????# Y """ # | | ?????????############## # ""T"" """ # | | ?????????# """ """ # # """"" """ # | | ?????????# """"""""" # # # | | ?????????# """"" # ############# | | ?????????# + #???????????? | | ?????????# # o#???????????? | | ?????????############## ##??????????? | | ????????? !! #??????????? | | ????????? ! #######????? | | ????????? [[! ! +????? | | ????????? [!! #????? | | ????????? [!! #????? | | ????????? ###### #????? | | ?????????# #????# #????? | | ?????????? """ #????# #????? | | ?????????? """ ######/#????? | | ?????????? """ # #????? | | ?????????? # #????? | +----------------------------------------------------+ Best States ------------- Heat Dissipation 28 Energy Generation 10 Energy Capacity 250 Matter Stores 281 Matter Capacity 300 Sight Range 16 Terrain Scan Density 10 Evasion (%) 55 Item Schematics ----------------- None Robot Schematics ------------------ None Fabricated ------------ Nothing Repaired ---------- Nothing Alien Tech Used ----------------- None Achievements -------------- None Challenges ------------ None Game ------ Seed NovaHybridAnalyzer Manual? 0 Play Time 00:10:47 Cumulative 7.8 hours Start 2025.09.24 @ 10:35:23 End 2025.09.24 @ 11:03:55 Sessions 1 Manual Loads 0 Difficulty Rogue Special Mode None Game No. 14 Rogue 7 Adventurer 6 Explorer 1 Win Type - Total 1 Types 1/0/0/0/0/0/0/0/0/0 Lore% 14 Gallery% 23 Achievement% 23 Wizard Run 0 Options --------- Layout 0 ASCII 0 Keyboard 0 Movement Numpad Keybinds 0 Fullscreen 2 Font 24/Smallcaps Map View 38x25 Zoom Use 98% Tactical HUD 1 Map Filters NONE Filters NONE Steam 1 RUN: 4a7e95dc-7e52-4f95-812d-0f49f29a3dd5